bitfinex-derivatives/quotes_ETHF0:USTF0_20251203
["timestamp","ask_amount","ask_price","bid_price","bid_amount"]
[1764727989378,8.32007899,3035.4,3035.3,3.2078]
[1764727990481,8.32007899,3035.4,3034.9,3.37251]
[1764727991188,0.00493705,3035.4,3034.9,5.68433006]
[1764727991488,0.00493705,3035.4,3035.0,10.10471329]
[1764727992188,0.00493705,3035.4,3035.1,0.84766712]
[1764727992383,0.00493705,3035.4,3035.2,0.84766712]
[1764727992583,0.00493705,3035.4,3035.3,0.84766712]
[1764727993094,8.32007899,3035.4,3035.3,0.84766712]
[1764727993285,0.00493705,3035.4,3035.3,0.84766712]
[1764727994182,0.00493705,3035.4,3035.3,8.94956712]
[1764727994382,0.00493705,3035.4,3035.3,12.15736712]
[1764727994584,0.00493705,3035.4,3035.3,19.69796712]
[1764727994784,3.2078,3036.0,3035.9,15.6425]
[1764727994985,3.2078,3036.4,3035.9,26.59488041]
[1764727995181,3.2078,3036.4,3036.0,0.84766712]
[1764727995392,3.2078,3036.4,3036.1,0.84766712]
[1764727995578,3.2078,3036.4,3036.2,0.84766712]
[1764727995779,3.2078,3036.4,3036.2,0.16464]
[1764727995985,3.2078,3037.5,3036.3,6.9641064]
[1764727996291,8.31514194,3037.2,3036.4,13.39248996]
[1764727996593,8.31514194,3037.2,3036.5,0.8416699]
[1764727996885,8.32276097,3037.2,3036.6,0.8416699]
[1764727997088,8.32276097,3037.2,3036.7,0.8416699]
[1764727997283,8.32276097,3037.2,3036.8,0.8416699]
[1764727997485,8.32276097,3037.2,3036.9,0.8416699]
[1764727997785,8.32276097,3037.2,3037.0,0.8416699]
[1764727997992,8.32276097,3037.2,3037.1,4.6256699]
[1764727999786,0.31282953,3037.1,3036.6,3.784]
[1764728000182,0.31282953,3037.1,3036.6,3.92564325]
[1764728000385,0.31282953,3037.3,3036.9,1.73294325]
[1764728000584,0.31282953,3037.3,3036.9,3.2078]
[1764728000585,4.79512953,3037.3,3036.9,3.2078]
[1764728000778,3.2078,3037.0,3036.6,2.20998004]
[1764728000981,3.2078,3037.0,3036.2,1.73294325]
[1764728001288,3.5244177,3037.0,3036.9,2.20998004]
[1764728001486,3.5244177,3037.0,3036.9,10.31188004]
[1764728001893,3.5244177,3037.0,3036.9,17.85248004]
[1764728002192,0.00378817,3037.0,3036.9,21.06028004]
[1764728002387,0.00378817,3037.0,3036.9,28.79093098]
[1764728002685,0.00378817,3037.0,3036.9,28.790894]
[1764728003089,0.00493705,3037.3,3037.2,15.6425]
[1764728004086,0.00822185,3037.3,3037.2,15.6425]
[1764728004395,3.2078,3038.1,3037.2,19.6281]
[1764728004583,0.31282953,3038.0,3037.9,8.1019]
[1764728004785,0.31282953,3038.0,3037.9,15.6425]
[1764728005090,0.649,3038.7,3038.6,15.6425]
[1764728005393,0.31282953,3038.6,3037.9,2.20998004]
[1764728005579,0.31282953,3038.6,3038.3,0.00493705]
[1764728005580,7.5074,3038.4,3038.3,0.00493705]
[1764728005784,0.31282953,3038.6,3038.3,0.00493705]
[1764728005987,0.31282953,3038.6,3038.5,15.6425]
[1764728006186,1.76139136,3041.2,3038.7,3.76331]
[1764728006392,3.2078,3040.4,3039.3,2.20998004]
[1764728006696,40.8,3040.6,3039.3,3.07173333]
[1764728006994,3.2078,3041.2,3040.4,3.2078]
[1764728007201,0.24557009,3042.8,3041.1,4.41996008]
[1764728007492,0.55839962,3042.8,3041.7,0.85620389]
[1764728007694,0.31282953,3042.8,3041.9,3.06618393]
[1764728007899,0.31282953,3042.8,3041.8,14.29034]
[1764728007900,2.20998004,3044.9,3042.1,1.02053389]
[1764728008194,0.05720683,3044.0,3042.9,0.00493705]
[1764728008399,0.05720683,3044.0,3042.9,0.009131]
[1764728008606,6.4156,3043.0,3042.9,0.009131]
[1764728008899,6.72842953,3043.9,3042.9,0.009131]
[1764728009102,6.4156,3043.8,3042.9,0.009131]
[1764728009396,4.48511574,3044.3,3042.9,0.009131]
[1764728009397,0.31282953,3044.3,3043.0,7.71657741]
[1764728009596,0.31282953,3044.3,3042.9,0.009131]
[1764728009784,0.31282953,3044.3,3040.8,3.5988]
[1764728009785,4.4823,3043.8,3041.2,4.02208124]
[1764728009989,4.4823,3043.8,3041.5,0.16435]
[1764728010192,0.30369853,3043.7,3041.5,4.31127126]
[1764728010397,0.30369853,3043.7,3041.6,2.90687735]
[1764728010592,0.30369853,3043.7,3041.5,0.16436]
[1764728010801,0.00490813,3042.9,3042.3,0.00492836]
[1764728011194,0.30369853,3042.8,3042.3,0.00492836]
[1764728011399,4.48720813,3042.9,3041.5,0.00330095]
[1764728011585,0.29877017,3042.7,3041.5,0.00330095]
[1764728011985,4.4823,3042.0,3039.9,0.724]
[1764728012193,4.4823,3042.0,3040.0,0.16444]
[1764728012399,0.00492836,3041.3,3040.7,0.00492836]
[1764728012893,0.29877017,3041.2,3040.7,0.00815069]
[1764728013696,0.00786687,3041.3,3040.9,2.90687735]
[1764728013900,0.30663704,3041.3,3040.7,0.00815069]
[1764728014286,0.29877017,3041.2,3040.7,0.00815069]
[1764728015094,0.00786687,3041.3,3040.7,0.00815069]
[1764728015301,0.30663704,3041.3,3040.7,0.00815069]
[1764728017801,0.30663704,3041.3,3041.2,3.2078]
[1764728018299,0.00786687,3041.3,3041.2,1.15279087]
[1764728018696,6.00786687,3041.3,3041.2,1.15279087]
[1764728019598,6.00786687,3041.3,3040.9,3.2078]
[1764728019805,4.8429,3040.8,3040.1,3.2078]
[1764728020105,4.8429,3040.0,3038.7,3.37231]
[1764728020398,8.0507,3040.0,3039.1,3.2078]
[1764728020593,8.0507,3040.0,3038.7,0.16451]
[1764728020594,3.2078,3039.6,3038.7,3.2078]
[1764728020800,44.01272836,3039.5,3038.8,0.00492836]
[1764728021198,3.21272836,3039.5,3038.8,0.00492836]
[1764728023303,3.2078,3039.0,3038.8,0.00492836]
[1764728023600,3.2102068,3039.0,3038.8,0.00492836]
[1764728024606,0.00492836,3039.5,3038.9,3.2078]
[1764728025007,0.00492836,3039.5,3038.9,3.3723]
[1764728025796,0.00855388,3039.5,3038.9,3.3723]
[1764728026107,0.00855388,3039.5,3039.3,3.2078]
[1764728028000,3.2078,3040.4,3039.3,3.2078]
[1764728028800,8.0507,3040.0,3039.3,3.2078]
[1764728029003,3.2078,3039.6,3038.9,3.2078]
[1764728029210,4.85141694,3040.0,3038.9,3.2078]
[1764728029412,3.2078,3039.7,3038.9,3.2078]
[1764728030315,4.85141694,3040.0,3039.3,3.2078]
[1764728030904,0.00851694,3040.0,3039.3,3.2078]
[1764728031798,0.00492836,3040.0,3039.3,3.2078]
[1764728032002,1.76139136,3042.8,3039.3,3.2078]
[1764728032003,60.20109392,3043.8,3043.2,2.6782]
[1764728032208,0.649,3045.5,3043.8,3.43265661]
[1764728032406,0.649,3045.5,3044.6,0.85424583]
[1764728032407,4.8429,3044.7,3044.6,0.85424583]
[1764728032601,4.8429,3044.7,3044.1,1.72968671]
[1764728032602,4.8429,3044.7,3044.2,0.85437364]
[1764728032903,4.8429,3044.7,3043.1,2.31182006]
[1764728032904,4.84676893,3044.7,3043.0,1.72968671]
[1764728033211,4.8429,3043.8,3042.9,1.72968671]
[1764728033408,4.8429,3043.8,3042.8,1.72968671]
[1764728033600,4.8429,3043.8,3042.7,1.72968671]
[1764728033601,1.87480167,3043.7,3042.7,1.72968671]
[1764728033801,0.0266745,3043.3,3042.6,1.72968671]
[1764728034119,0.0266745,3043.3,3042.6,0.00859991]
[1764728034120,0.03999786,3043.0,3042.6,0.00859991]
[1764728034416,0.03999786,3043.0,3041.3,3.43265661]
[1764728034417,4.8429,3042.9,3041.2,2.17530501]
[1764728034615,0.04517513,3042.1,3040.7,3.43265661]
[1764728034914,4.8429,3042.0,3040.9,0.16439]
[1764728035509,0.04517513,3041.5,3041.1,0.16930836]
[1764728035713,0.00492836,3041.8,3041.1,0.00492836]
[1764728036107,0.00492836,3041.8,3041.3,0.16437]
[1764728036313,0.00492836,3041.8,3041.3,3.43265661]
[1764728036502,0.00492836,3041.8,3041.4,4.1857378]
[1764728037205,0.00492836,3041.8,3041.3,0.16436]
[1764728037415,0.00492836,3041.8,3041.7,3.2078]
[1764728038405,0.00492836,3041.8,3041.7,3.37215]
[1764728038806,0.00277823,3042.0,3041.9,0.16434]
[1764728039003,0.649,3042.8,3042.1,3.2078]
[1764728039212,0.649,3043.6,3042.7,3.2078]
[1764728039420,4.8429,3042.9,3042.7,3.2078]
[1764728039915,4.84585398,3042.9,3042.7,3.2078]
[1764728040416,4.08216186,3047.7,3044.0,3.2078]
[1764728040613,8.0507,3048.3,3047.2,0.16405]
[1764728040818,8.0507,3048.3,3044.1,69.23222]
[1764728040819,3.58710221,3048.2,3046.4,3.59674661]
[1764728041109,3.58710221,3048.2,3044.1,81.21690434]
[1764728041110,3.58710221,3048.2,3045.2,3.59681661]
[1764728041314,3.58710221,3048.2,3045.5,0.16414]
[1764728041513,0.00490813,3047.2,3046.5,0.00492836]
[1764728041918,0.01750699,3046.9,3045.2,0.00425063]
[1764728042214,40.8,3046.8,3045.2,0.00425063]
[1764728042404,4.8429,3045.9,3045.2,0.00425063]
[1764728042608,4.84576252,3045.9,3045.2,0.00425063]
[1764728042807,0.0350139,3045.6,3045.2,0.00917899]
[1764728043012,0.0350139,3045.6,3044.0,4.22284351]
[1764728043218,4.53356739,3044.8,3044.0,0.7901869]
[1764728043419,4.53356739,3044.8,3042.8,0.16428]
[1764728043815,4.53356739,3044.8,3043.3,3.43265661]
[1764728044014,4.53356739,3044.8,3043.7,0.00492836]
[1764728044220,0.04376739,3044.3,3043.7,0.00492836]
[1764728044720,0.04376739,3044.3,3043.8,0.83747936]
[1764728044921,0.04376739,3044.3,3043.7,0.00492836]
[1764728045113,0.04376739,3044.3,3043.8,0.83741334]
[1764728045309,0.04376739,3044.1,3043.7,0.00492836]
[1764728045522,0.04376739,3044.1,3043.8,0.83695184]
[1764728045717,0.04376739,3044.1,3043.9,0.83695184]
[1764728045918,0.04376739,3044.1,3044.0,0.83695184]
[1764728046217,0.04376739,3044.1,3043.8,0.83674945]
[1764728046423,0.04376739,3044.1,3043.9,0.83674945]
[1764728046625,0.04376739,3044.1,3044.0,0.83674945]
[1764728047025,0.00492836,3044.4,3044.1,3.16403261]
[1764728050022,4.4898,3044.8,3044.1,3.32825261]
[1764728050327,4.4898,3044.8,3044.7,3.2078]
[1764728050522,4.84576252,3045.9,3044.7,3.2078]
[1764728050823,3.2078,3045.8,3045.1,3.2078]
[1764728051020,3.21272836,3045.8,3045.1,3.2078]
[1764728051527,9.21272836,3045.8,3045.1,3.2078]
[1764728052029,3.21272836,3045.8,3045.1,3.2078]
[1764728053921,9.21272836,3045.8,3044.8,3.2078]
[1764728054126,3.21272836,3045.8,3044.8,3.2078]
[1764728055232,3.2078,3045.4,3044.8,3.2078]
[1764728055532,3.2078,3045.4,3044.4,3.2078]
[1764728055920,40.8,3045.3,3044.4,3.2078]
[1764728058731,3.2078,3044.9,3043.8,0.8354361]
[1764728059033,40.8,3045.3,3043.7,3.21272836]
[1764728059034,3.2078,3044.5,3043.7,3.21272836]
[1764728059232,3.2078,3044.5,3043.8,0.84218419]
[1764728059433,3.2078,3045.1,3044.3,3.2078]
[1764728059734,3.2078,3045.5,3044.4,0.84218419]
[1764728059936,3.2078,3045.5,3044.5,0.84218419]
[1764728060123,3.2078,3045.5,3044.3,3.2078]
[1764728060124,3.2078,3045.5,3044.6,0.84218419]
[1764728060324,3.2078,3045.5,3044.7,0.84218419]
[1764728060520,3.2078,3045.5,3044.8,0.84218419]
[1764728060730,3.2078,3045.5,3044.7,3.2078]
[1764728060923,3.2078,3045.5,3044.8,0.84327345]
[1764728061130,3.2078,3045.5,3044.9,0.84526177]
[1764728061326,3.2078,3045.5,3043.1,2.85497399]
[1764728061526,40.8,3045.7,3039.9,9.41101191]
[1764728061527,2.2449,3043.2,3041.8,2.04292278]
[1764728061726,2.2449,3043.2,3041.6,4.4454]
[1764728061927,2.0861,3044.0,3041.6,4.4454]
[1764728062130,2.0861,3044.0,3042.0,0.16433]
[1764728062431,0.00492836,3043.3,3042.7,0.00492836]
[1764728063726,0.00492836,3043.3,3042.0,0.00279481]
[1764728063936,40.8,3043.2,3042.0,0.00279481]
[1764728064823,4.4898,3042.9,3042.3,2.836e-05]
[1764728065140,3.2078,3042.1,3041.0,3.37218]
[1764728065328,3.2078,3041.7,3041.0,3.2078]
[1764728065928,3.21571172,3041.7,3041.0,3.21610645]
[1764728067233,3.2078,3042.5,3041.6,0.16435]
[1764728067439,2.0861,3044.0,3041.6,0.16435]
[1764728067440,3.2078,3042.6,3041.6,0.16435]
[1764728067639,3.2078,3042.2,3041.6,0.16435]
[1764728067829,3.2078,3042.6,3041.6,0.16435]
[1764728068232,0.00492836,3042.4,3041.6,0.16435]
[1764728069335,3.2078,3042.3,3041.1,7.6532]
[1764728069529,3.2078,3042.3,3041.5,3.2078]
[1764728069934,3.2078,3042.3,3041.7,0.16435]
[1764728070141,0.00492836,3042.4,3042.0,3.2078]
[1764728070338,0.00492836,3042.4,3042.0,7.6532]
[1764728070533,0.00492836,3042.4,3042.3,0.16431]
[1764728070833,0.00492836,3042.4,3042.0,18.8122]
[1764728071040,0.00492836,3042.4,3042.0,7.81753]
[1764728071240,0.00492836,3042.4,3042.3,0.16431]
[1764728071434,3.21272836,3042.4,3042.3,0.16431]
[1764728071633,0.00492836,3042.4,3042.3,0.16431]
[1764728072334,2.0861,3044.0,3042.6,0.16429]
[1764728072542,3.2078,3043.1,3042.6,0.16429]
[1764728072937,3.2078,3043.1,3042.2,3.2078]
[1764728073239,3.2078,3042.8,3042.2,3.2078]
[1764728073436,3.21671569,3042.8,3042.2,3.21272836]
[1764728074331,3.21671569,3042.8,3042.2,3.37704836]
[1764728075443,0.00891569,3042.8,3042.3,0.16431]
[1764728076149,0.00891569,3042.8,3042.7,3.37209]
[1764728078649,3.2078,3044.2,3042.7,9.2078]
[1764728078845,3.2078,3043.8,3043.2,3.37206]
[1764728079047,3.2078,3044.3,3043.2,3.37206]
[1764728079444,3.2078,3044.3,3043.4,0.16425]
[1764728079638,0.00492836,3044.2,3043.5,0.16425]
[1764728080038,0.00492836,3044.2,3043.2,7.72286134]
[1764728080039,0.00492836,3044.2,3043.7,0.16423]
[1764728081849,0.00492836,3044.2,3043.6,3.2078]
[1764728082057,0.00492836,3044.2,3043.2,0.16773134]
[1764728082256,3.2078,3043.9,3043.2,0.16773134]
[1764728083050,3.2078,3043.9,3043.4,0.16425]
[1764728085164,3.2078,3043.9,3043.2,4.51506134]
[1764728085366,0.00492836,3044.2,3043.6,3.2078]
[1764728085668,0.00492836,3044.2,3044.1,0.16422]
[1764728087370,0.00492836,3044.2,3044.1,11.29422]
[1764728087560,0.00492836,3044.2,3044.1,14.50202]
[1764728087959,3.2078,3045.5,3044.5,0.16419]
[1764728088155,3.2078,3045.1,3044.5,0.16419]
[1764728088865,3.2078,3044.7,3044.5,0.16419]
[1764728089063,0.00915993,3045.1,3044.5,0.16419]
[1764728089263,0.00915993,3045.1,3044.5,3.37199]
[1764728089466,0.00915993,3045.1,3044.6,0.16419]
[1764728089961,0.00915993,3045.1,3044.1,3.2078]
[1764728089962,3.2078,3044.8,3044.1,3.2078]
[1764728090164,7.685,3044.8,3044.1,3.2078]
[1764728090361,3.2078,3044.8,3044.3,3.70429413]
[1764728090556,3.2078,3044.8,3044.7,0.16419]
[1764728090755,8.19409413,3046.5,3045.0,0.16417]
[1764728090756,3.20500519,3045.2,3045.0,0.16417]
[1764728090957,3.20500519,3045.2,3045.1,14.051]
[1764728091160,3.20500519,3045.2,3045.0,14.21217]
[1764728091765,3.20918999,3045.2,3045.0,14.21217]
[1764728091965,0.0041848,3045.2,3045.1,0.16416]
[1764728092367,0.0041848,3045.2,3045.1,10.28116]
[1764728092870,0.0041848,3045.2,3045.1,14.19916]
[1764728093075,0.0041848,3045.2,3044.8,0.00492836]
[1764728093269,0.0041848,3045.2,3044.8,4.51652836]
[1764728093474,0.0041848,3045.2,3045.1,3.2078]
[1764728094064,0.0041848,3045.2,3045.1,3.37196]
[1764728094269,0.0041848,3045.2,3045.1,12.95796]
[1764728094571,0.0041848,3045.2,3045.1,3.37196]
[1764728094972,0.0041848,3045.2,3045.1,12.94596]
[1764728095280,0.0041848,3045.2,3045.1,17.39696]
[1764728096164,0.0041848,3045.2,3045.1,3.37196]
[1764728096370,0.0041848,3045.2,3045.1,17.39096]
[1764728096569,0.0041848,3045.2,3045.1,3.37196]
[1764728096965,0.0041848,3045.2,3045.1,13.97696]
[1764728097270,0.0041848,3045.2,3045.1,17.37596]
[1764728097472,0.0041848,3045.2,3045.1,17.37296]
[1764728097861,0.0041848,3045.2,3045.1,3.2078]
[1764728098069,0.0041848,3045.2,3044.8,0.00492836]
[1764728098574,0.0041848,3045.2,3044.9,13.395]
[1764728098974,0.0041848,3045.2,3044.8,0.00492836]
[1764728099170,0.0041848,3045.2,3044.9,7.666]
[1764728099370,0.0041848,3045.2,3044.8,0.00492836]
[1764728099574,0.0041848,3045.2,3044.8,7.66492836]
[1764728099773,0.0041848,3045.2,3044.8,13.98492836]
[1764728099970,0.0041848,3045.2,3044.8,0.00492836]
[1764728100177,0.0041848,3045.2,3045.0,4.5116]
[1764728101076,0.0041848,3045.2,3044.9,10.881]
[1764728101470,3.2078,3046.2,3045.4,0.16415]
[1764728101668,3.2078,3046.2,3045.7,3.2078]
[1764728101873,3.2078,3046.2,3045.7,12.9378]
[1764728102272,2.62880187,3049.6,3047.1,4.2431]
[1764728102273,1.72926149,3048.4,3047.1,4.2431]
[1764728102475,4.4772,3048.0,3047.4,0.00492836]
[1764728102674,4.4772,3047.2,3047.1,0.00319992]
[1764728103077,10.48841804,3047.2,3046.2,2.805]
[1764728103273,4.48841804,3047.2,3045.7,4.5116]
[1764728103573,0.00492835,3046.8,3046.1,0.00492836]
[1764728103971,4.4835,3046.4,3046.1,0.00492836]
[1764728104178,0.01121804,3046.3,3046.1,0.00870531]
[1764728104371,0.01121804,3046.3,3045.0,2.77524119]
[1764728104570,0.01121804,3046.3,3044.8,11.0096]
[1764728104774,0.01121804,3046.3,3045.0,2.77524119]
[1764728104967,4.4835,3046.4,3045.0,2.77524119]
[1764728105173,4.4835,3046.4,3044.3,0.85775726]
[1764728105174,2.77524119,3045.3,3044.3,0.85775726]
[1764728105377,0.00492836,3045.1,3044.5,0.00492836]
[1764728105675,0.00492836,3045.1,3044.3,0.00321664]
[1764728105676,4.51141208,3044.8,3044.3,0.00321664]
[1764728105980,0.03625911,3044.6,3044.3,0.00321664]
[1764728106176,2.77524119,3044.4,3042.9,0.85775726]
[1764728106381,0.04460613,3043.7,3043.2,3.2078]
[1764728106573,3.2078,3043.5,3043.1,0.00492836]
[1764728107081,0.04515922,3043.3,3043.1,0.00492836]
[1764728107377,0.04515922,3043.3,3043.1,0.00896876]
[1764728107769,0.04515922,3043.3,3043.2,3.2078]
[1764728107975,0.04515922,3043.3,3043.1,0.00896876]
[1764728108977,4.52865922,3043.2,3042.5,1.0394872]
[1764728109174,3.2078,3042.9,3042.4,3.2078]
[1764728109882,0.04515922,3042.7,3042.4,3.21163283]
[1764728110375,0.04515922,3042.7,3042.4,0.00383283]
[1764728111083,3.2119163,3042.9,3042.4,0.00383283]
[1764728111084,0.04515922,3042.6,3042.4,0.00383283]
[1764728111986,0.04515922,3042.5,3042.4,0.00383283]
[1764728112384,3.25295922,3042.5,3042.4,0.00383283]
[1764728112585,4.4835,3042.4,3042.3,1e-08]
[1764728112787,4.4835,3042.4,3041.5,3.2078]
[1764728112980,0.0041163,3042.9,3041.5,3.2078]
[1764728112981,0.04515922,3042.0,3041.5,3.2078]
[1764728113379,3.2078,3041.7,3041.1,3.2078]
[1764728113684,0.00492836,3041.7,3041.1,3.21597576]
[1764728114080,0.00492836,3041.7,3041.2,0.16437]
[1764728114278,3.2078,3042.1,3041.2,0.16437]
[1764728114279,3.2078,3042.1,3041.6,4.6113]
[1764728115189,3.2078,3042.1,3041.2,0.16437]
[1764728115479,3.2078,3041.7,3041.1,3.21597576]
[1764728116082,3.2078,3041.3,3041.1,0.00817576]
[1764728116979,3.2078,3041.3,3040.3,3.2078]
[1764728117484,3.2078,3040.4,3039.9,3.2078]
[1764728117684,3.2078,3040.8,3039.9,3.2078]
[1764728118081,0.00492836,3040.7,3040.5,3.2078]
[1764728118285,0.00492836,3040.7,3040.0,3.54336836]
[1764728118490,0.00492836,3040.7,3040.1,3.2078]
[1764728119082,3.2078,3040.4,3040.0,0.00492836]
[1764728119388,3.2078,3040.3,3040.0,0.00492836]
[1764728119584,3.2078,3040.5,3040.0,0.00492836]
[1764728119783,0.00492836,3040.7,3040.1,3.37223]
[1764728122385,0.00492836,3040.7,3040.1,3.2078]
[1764728122584,0.00492836,3040.7,3040.0,0.00492836]
[1764728122790,0.00492836,3040.7,3040.3,3.2078]
[1764728123383,3.2078,3040.4,3040.0,0.00492836]
[1764728123982,4.4496,3040.1,3040.0,0.00492836]
[1764728124183,4.4496,3040.1,3039.2,3.2078]
[1764728125085,3.2078,3039.5,3038.8,3.3723]
[1764728125288,4.4496,3040.1,3039.1,0.00328566]
[1764728125289,3.2078,3039.3,3039.1,0.00328566]
[1764728125592,3.2078,3039.2,3039.1,0.00328566]
[1764728125979,3.2078,3039.8,3039.1,0.00328566]
[1764728126184,3.2078,3039.6,3039.1,0.00328566]
[1764728126379,3.2078,3039.2,3039.1,0.00328566]
[1764728127701,3.2078,3039.6,3039.1,3.71083981]
[1764728127899,3.2078,3040.2,3039.4,4.5319]
[1764728128199,3.2078,3039.5,3039.3,0.16447]
[1764728128798,4.4496,3040.1,3039.3,0.16447]
[1764728128799,3.2078,3039.9,3039.3,0.16447]
[1764728128998,3.2078,3039.5,3039.1,0.00328566]
[1764728129293,3.2078,3039.8,3039.1,0.00328566]
[1764728130203,3.2078,3039.5,3039.1,0.00328566]
[1764728130587,3.2078,3039.9,3039.2,3.2078]
[1764728130787,4.4496,3040.1,3039.1,0.16776566]
[1764728130788,3.2078,3039.8,3039.1,0.16776566]
[1764728131494,3.2078,3039.2,3039.1,0.00328566]
[1764728132089,3.2078,3039.2,3038.8,0.00280616]
[1764728132500,3.2078,3039.2,3037.9,3.2078]
[1764728132699,4.4496,3039.4,3037.9,3.2078]
[1764728132700,3.2078,3038.6,3037.9,3.2078]
[1764728133195,0.00493689,3038.6,3037.9,3.2078]
[1764728133393,3.2078,3038.3,3037.9,3.21179741]
[1764728133792,3.2078,3038.5,3037.9,3.21179741]
[1764728133990,0.00909457,3038.6,3038.3,5.99566314]
[1764728134191,3.21689457,3038.6,3038.2,0.16453]
[1764728134388,3.21689457,3038.6,3037.9,3.21179741]
[1764728134898,3.21689457,3038.6,3037.9,3.37634741]
[1764728135094,0.00909457,3038.6,3038.3,3.37233]
[1764728135493,0.00909457,3038.6,3038.5,2.78786314]
[1764728135694,0.00909457,3038.6,3038.4,0.16452]
[1764728138100,0.00909457,3038.6,3038.3,3.2078]
[1764728138500,3.21689457,3038.6,3037.9,3.21179741]
[1764728139007,0.00909457,3038.6,3038.3,3.2078]
[1764728139417,0.00909457,3038.6,3038.3,3.37233]
[1764728139704,0.00909457,3038.6,3038.5,0.16452]
[1764728140204,3.21689457,3038.6,3037.9,3.21179741]
[1764728140405,3.2078,3038.3,3037.9,3.21179741]
[1764728140799,3.21689457,3038.6,3037.9,3.21179741]
[1764728142400,4.7248,3038.0,3037.4,3.2078]
[1764728142706,3.2078,3038.2,3037.4,3.2078]
[1764728142908,3.2078,3038.2,3037.6,0.16457]
[1764728143298,0.00909457,3038.6,3037.6,0.16457]
[1764728143505,3.2078,3038.3,3037.6,0.16852686]
[1764728143800,3.2078,3038.3,3037.6,0.00395686]
[1764728145094,0.00909457,3038.6,3038.2,8.1006]
[1764728145300,3.2078,3038.5,3038.2,8.1006]
[1764728145605,0.00909457,3038.6,3038.2,8.1006]
[1764728146195,0.00909457,3038.6,3037.9,3.2078]
[1764728149101,0.00909457,3038.6,3038.5,8.1006]
[1764728149604,0.00909457,3038.6,3038.5,16.1645]
[1764728149901,3.2078,3038.9,3038.3,3.2078]
[1764728150108,14.9398,3038.0,3037.9,3.2078]
[1764728150900,14.94403287,3038.0,3037.9,3.2078]
[1764728151400,18.15183287,3038.0,3037.6,0.00889375]
[1764728151598,7.4983,3037.7,3037.6,0.00889375]
[1764728151900,14.9398,3037.7,3037.6,0.00889375]
[1764728152700,7.4983,3037.1,3037.0,3.2078]
[1764728153611,3.2078,3037.5,3037.0,3.2078]
[1764728153908,3.2078,3037.5,3037.0,3.21183607]
[1764728155404,14.9398,3037.1,3037.0,3.21183607]
[1764728156112,7.4983,3037.1,3037.0,3.21183607]
[1764728156795,3.2078,3037.4,3037.0,3.21183607]
[1764728157203,14.9398,3037.1,3037.0,3.21183607]
[1764728157710,7.9326,3037.8,3037.0,11.31243607]
[1764728158113,7.4983,3037.1,3037.0,3.21183607]
[1764728158414,14.9398,3037.1,3037.0,3.21183607]
[1764728158807,7.4983,3037.1,3037.0,3.21183607]
[1764728159609,14.9398,3037.1,3037.0,0.00403607]
[1764728159805,7.4983,3036.2,3036.1,3.2078]
[1764728160016,14.9398,3036.2,3036.1,3.2078]
[1764728160210,7.4983,3036.2,3036.1,3.2078]
[1764728160415,14.9398,3036.2,3036.1,3.2078]
[1764728160610,7.4983,3036.2,3036.1,3.2078]
[1764728160918,0.00493689,3036.5,3036.1,3.21085438]
[1764728161212,14.9398,3036.2,3036.1,3.21085438]
[1764728162711,14.9398,3036.2,3035.5,0.16468]
[1764728162712,7.4983,3035.6,3035.5,3.2078]
[1764728162915,14.9398,3035.6,3035.0,3.2078]
[1764728163213,7.9499,3035.4,3035.0,3.2078]
[1764728163417,15.7419,3035.1,3035.0,3.2078]
[1764728163713,15.7419,3035.1,3034.1,3.2078]
[1764728163714,15.7419,3034.7,3034.1,3.2078]
[1764728163915,15.74683689,3034.7,3034.1,3.2078]
[1764728164416,0.00493689,3034.7,3034.1,3.2078]
[1764728164818,15.7419,3034.2,3034.1,0.00248282]
[1764728165119,8.0209,3034.2,3034.1,0.00248282]
[1764728165412,20.484,3034.2,3034.1,0.00248282]
[1764728165915,0.00493689,3034.7,3034.6,15.6671]
[1764728166117,0.00239862,3035.1,3035.0,15.6671]
[1764728166317,0.00239862,3035.1,3034.4,0.16474]
[1764728166516,3.2078,3034.8,3034.7,15.6671]
[1764728166721,3.2078,3034.8,3034.4,0.16474]
[1764728166916,3.2078,3034.8,3034.7,15.6671]
[1764728168017,3.2078,3034.8,3034.4,0.00493689]
[1764728168218,3.2078,3034.8,3034.7,15.6671]
[1764728168519,3.19147924,3034.8,3034.7,15.6671]
[1764728170024,3.19147924,3034.8,3034.7,7.9184]
[1764728170419,3.2078,3035.0,3034.7,7.9184]
[1764728170616,15.7419,3034.5,3034.4,0.00493689]
[1764728171015,3.2078,3034.5,3034.4,0.00493689]
[1764728171216,3.2078,3034.5,3034.4,7.92333689]
[1764728171417,3.2078,3034.5,3034.4,0.00493689]
[1764728171619,18.9497,3034.5,3034.4,0.00493689]
[1764728174128,3.2078,3034.5,3034.4,15.67203689]
[1764728174327,3.2078,3034.5,3034.4,7.92333689]
[1764728174522,18.9497,3034.5,3034.4,0.00493689]
[1764728175120,3.2078,3034.5,3034.4,15.67203689]
[1764728175326,3.2078,3034.5,3034.4,15.83677689]
[1764728175820,3.2078,3034.5,3034.4,7.92333689]
[1764728176023,11.2287,3034.5,3034.4,0.00493689]
[1764728176316,18.9497,3034.5,3034.4,0.00493689]
[1764728176520,3.2078,3034.5,3034.4,15.67203689]
[1764728177030,3.2078,3034.9,3034.8,20.5458]
[1764728177728,3.2078,3034.9,3034.7,0.16472]
[1764728177923,3.2078,3034.9,3034.8,7.9184]
[1764728178130,3.2078,3034.9,3034.8,15.6671]
[1764728178629,3.2078,3034.9,3034.8,20.5458]
[1764728179521,0.00733551,3035.1,3035.0,15.83181]
[1764728179828,3.2078,3036.5,3035.7,15.6671]
[1764728180030,3.15998649,3037.6,3035.8,0.16467]
[1764728180231,3.15998649,3037.6,3036.0,4.8178]
[1764728180526,3.15998649,3037.1,3035.2,1.14502511]
[1764728180730,3.15998649,3037.1,3035.0,0.16471]
[1764728180927,15.7419,3035.8,3035.7,0.00493689]
[1764728181235,18.9497,3035.8,3035.7,0.00493689]
[1764728181430,15.7419,3035.8,3035.7,0.00493689]
[1764728181734,15.7419,3035.8,3034.7,3.2078]
[1764728181735,8.0209,3035.2,3034.7,3.2078]
[1764728183231,12.763,3035.2,3034.7,3.2078]
[1764728183433,15.7419,3034.8,3034.7,3.2078]
[1764728183730,15.74490022,3034.8,3034.7,3.2078]
[1764728184127,15.7419,3034.7,3034.3,3.2078]
[1764728184324,0.00300022,3034.8,3034.3,3.2078]